Workbook

Sheet Simulación
A1: Simulador | D1: A. Roldán – Versión 2.2 – Año 2016
B2: Repeticiones de la simulación | E2: 1
B3: Número de filas | E3: 100
B4: (de 1 a 1000)
B5: Número de columnas (si procede) | E5: 1 | G5: 2 | Y5: 20 | Z5: 20
B6: (de 1 a 12) | G6: 3 | Y6: 10 | Z6: 16
G7: 2 | Y7: 16 | Z7: 17
A8: Tipo de simulación | D8: Extremos (si procede) | G8: 2 | Y8: 11 | Z8: 17
A9: Binomial | G9: 1 | Y9: 20 | Z9: 17
D10: Mínimo | E10: 2 | G10: 0 | Y10: 15 | Z10: 18
D11: Máximo | E11: 77 | G11: 1 | Y11: 17 | Z11: 17
G12: 1 | Y12: 14 | Z12: 16
D13: Parámetros | G13: 1 | Y13: 12 | Z13: 19
A14: Decimal – Entero | G14: 2 | Y14: 12 | Z14: 14
A15: Entero | D15: Media | E15: 65 | G15: 2 | Y15: 17 | Z15: 13
D16: Sigma | E16: 8 | G16: 1 | Y16: 14 | Z16: 13
G17: 2 | Y17: 17 | Z17: 10
A18: Criterios | G18: 2 | Y18: 17 | Z18: 16
A19: Máximo-Mínimo | D19: Otros parámetros | G19: 1 | Y19: 11 | Z19: 15
G20: 2 | Y20: 18 | Z20: 17
D21: Intentos | E21: 3 | G21: 1 | Y21: 19 | Z21: 20
D22: Probabilidad | E22: 0.5 | G22: 1 | Y22: 18 | Z22: 13
D23: C | G23: 2 | Y23: 16 | Z23: 17
A24: Número intervalos | D24: D | G24: 2 | Y24: 11 | Z24: 17
B25: 4 | G25: 2 | Y25: 19 | Z25: 19
G26: 0 | Y26: 20 | Z26: 15
G27: 3 | Y27: 14 | Z27: 14
G28: 2 | Y28: 11 | Z28: 13
G29: 0 | Y29: 19 | Z29: 16
G30: 1 | Y30: 10 | Z30: 12
G31: 1 | Y31: 19 | Z31: 13
G32: 3 | Y32: 14 | Z32: 16
G33: 1 | Y33: 14 | Z33: 18
G34: 2 | Y34: 15 | Z34: 14
G35: 2 | Y35: 20 | Z35: 10
G36: 1 | Y36: 16 | Z36: 15
G37: 1 | Y37: 14 | Z37: 18
G38: 1 | Y38: 16 | Z38: 11
G39: 1 | Y39: 18 | Z39: 18
G40: 2 | Y40: 20 | Z40: 15
G41: 0 | Y41: 18 | Z41: 18
G42: 2 | Y42: 18 | Z42: 13
G43: 2 | Y43: 12 | Z43: 20
G44: 1 | Y44: 10 | Z44: 11
G45: 2 | Y45: 18 | Z45: 15
G46: 2 | Y46: 19 | Z46: 10
G47: 1 | Y47: 12 | Z47: 17
G48: 2 | Y48: 18 | Z48: 20
G49: 2 | Y49: 13 | Z49: 17
G50: 2 | Y50: 14 | Z50: 13
G51: 2 | Y51: 15 | Z51: 19
G52: 1 | Y52: 13 | Z52: 19
G53: 1 | Y53: 12 | Z53: 16
G54: 2 | Y54: 14 | Z54: 20
G55: 2 | Y55: 18 | Z55: 19
G56: 2 | Y56: 13 | Z56: 16
G57: 1 | Y57: 11 | Z57: 11
G58: 2 | Y58: 17 | Z58: 20
G59: 1 | Y59: 11 | Z59: 19
G60: 2 | Y60: 16 | Z60: 18
G61: 2 | Y61: 17 | Z61: 10
G62: 0 | Y62: 17 | Z62: 17
G63: 1 | Y63: 19 | Z63: 16
G64: 3 | Y64: 17 | Z64: 16
G65: 2 | Y65: 14 | Z65: 18
G66: 2 | Y66: 15 | Z66: 14
G67: 3 | Y67: 14 | Z67: 18
G68: 0 | Y68: 11 | Z68: 18
G69: 2 | Y69: 19 | Z69: 20
G70: 1 | Y70: 10 | Z70: 16
G71: 1 | Y71: 16 | Z71: 17
G72: 3 | Y72: 11 | Z72: 17
G73: 1 | Y73: 12 | Z73: 20
G74: 1 | Y74: 10 | Z74: 13
G75: 2 | Y75: 12 | Z75: 12
G76: 1 | Y76: 14 | Z76: 17
G77: 1 | Y77: 12 | Z77: 20
G78: 1 | Y78: 13 | Z78: 15
G79: 0 | Y79: 18 | Z79: 14
G80: 1 | Y80: 14 | Z80: 13
G81: 2 | Y81: 12 | Z81: 17
G82: 1 | Y82: 14 | Z82: 12
G83: 2 | Y83: 18 | Z83: 11
G84: 2 | Y84: 12 | Z84: 11
G85: 2 | Y85: 18 | Z85: 19
G86: 0 | Y86: 20 | Z86: 15
G87: 2 | Y87: 13 | Z87: 13
G88: 1 | Y88: 18 | Z88: 13
G89: 1 | Y89: 18 | Z89: 18
G90: 3 | Y90: 19 | Z90: 14
G91: 1 | Y91: 10 | Z91: 10
G92: 0 | Y92: 18 | Z92: 10
G93: 1 | Y93: 16 | Z93: 13
G94: 1 | Y94: 12 | Z94: 14
G95: 2 | Y95: 16 | Z95: 10
G96: 1 | Y96: 10 | Z96: 12
G97: 3 | Y97: 11 | Z97: 15
G98: 1 | Y98: 12 | Z98: 11
G99: 2 | Y99: 17 | Z99: 18
G100: 3 | Y100: 10 | Z100: 20
G101: 0 | Y101: 19 | Z101: 12
G102: 2 | Y102: 13 | Z102: 19
G103: 0 | Y103: 20 | Z103: 20
G104: 2 | Y104: 17 | Z104: 12

Sheet Estadísticos
B3: Estadísticos de momentos | E3: Tabla de frecuencias | I3: Gráfico
B5: Media | C5: 1.49 | L5: 0 | M5: 1
B6: Desviación típica | C6: 0.8061637551 | E6: 0 | F6: 11
B7: Asimetría | C7: -0.08207650395 | E7: 1 | F7: 38
B8: Curtosis | C8: -0.4894288304 | E8: 2 | F8: 42
E9: 3 | F9: 9
B12: Valores teóricos
B13: Media | C13: 1.5
B14: Desviación típica | C14: 0.8660254038
B15: Asimetría | C15: 0
B16: Curtosis | C16: -0.6666666667
A23: a | B23: 3 | C23: 2 | D23: 12
A24: b | B24: 3 | C24: 3 | D24: 16
A25: f | B25: 9 | C25: 417 | D25: 432
A26: h | B26: 0.09 | C26: 0.417 | D26: 0.432

Sheet Regresión
B3: Estadísticos de X e Y
E4: HOJA EN CONSTRUCCIÓN
B5: Media X | C5: 79.99868392
B6: Desv. X | C6: 2.016277909
B7: Media Y | C7: 31.99608098
B8: Desv. Y | C8: 3.118675085
B9: Covarianza | C9: 4.852860664
B16: Media y sigma en su sitio
B17: Media de y | C17: En parámetro A
B18: pendiente | C18: En B

Sheet Galton
B2: Experimento de Galton
N6: Versión 2019 con probabilidad fijada
A7: Instrucciones en la parte inferior
H8: 2
H9: =IF(H8<>0,"O","") -> O
G10: 0 | I10: 1
G11: =IF(G10<>0,"O","") ->  | I11: =IF(I10<>0,"O","") -> O
F12: 0 | H12: 1 | J12: 0
F13: =IF(F12<>0,"O","") ->  | H13: =IF(H12<>0,"O","") -> O | J13: =IF(J12<>0,"O","") -> 
E14: 0 | G14: 2 | I14: 0 | K14: 0
E15: =IF(E14<>0,"O","") ->  | G15: =IF(G14<>0,"O","") -> O | I15: =IF(I14<>0,"O","") ->  | K15: =IF(K14<>0,"O","") -> 
D16: 0 | F16: 0 | H16: 2 | J16: 0 | L16: 0
D17: =IF(D16<>0,"O","") ->  | F17: =IF(F16<>0,"O","") ->  | H17: =IF(H16<>0,"O","") -> O | J17: =IF(J16<>0,"O","") ->  | L17: =IF(L16<>0,"O","") -> 
C18: 0 | E18: 0 | G18: 0 | I18: 1 | K18: 0 | M18: 0
C19: =IF(C18<>0,"O","") ->  | E19: =IF(E18<>0,"O","") ->  | G19: =IF(G18<>0,"O","") ->  | I19: =IF(I18<>0,"O","") -> O | K19: =IF(K18<>0,"O","") ->  | M19: =IF(M18<>0,"O","") ->  | P19: Número de tiradas de la serie
A21: Tiradas: | B21: 1000 | C21: 3 | D21: 0 | E21: 23 | F21: 0 | G21: 149 | H21: 0 | I21: 311 | J21: 0 | K21: 340 | L21: 0 | M21: 174 | P21: 1000
B23: Teoría | C23: =ROUND($B21*(1-$P25)^5,1) -> 2.4 | E23: =ROUND($B21*$P25*(1-$P25)^4*5,1) -> 28.4 | G23: =ROUND($B21*$P25^2*(1-$P25)^3*10,1) -> 132.3 | I23: =ROUND($B21*$P25^3*(1-$P25)^2*10,1) -> 308.7 | K23: =ROUND($B21*$P25^4*(1-$P25)*5,1) -> 360.2 | M23: =ROUND($B21*$P25^5,1) -> 168.1 | P23: Probabilidad
B25: Diferencias | C25: =C21-C23 -> 0.6 | E25: =E21-E23 -> -5.4 | G25: =G21-G23 -> 16.7 | I25: =I21-I23 -> 2.3 | K25: =K21-K23 -> -20.2 | M25: =M21-M23 -> 5.9 | P25: 0.7
C28: Instrucciones
C30: Para una primera tirada pulsa el botón Inicio
C31: Después vas pulsando sobre el botón Tirada las veces que desees
C32: Para una serie, escribe el número de tiradas y pulsa el botón Serie
C33: Observa las frecuencias teóricas, los resultados de las tiradas y sus diferencias.
C34: El gráfico irá evolucionando con las tiradas.

Sheet Instrucciones
A3: Enlaces
C4: Pasos para cada tipo de simulación
A5: Generales
A6: Uniforme | C6: Generales
A7: Normal
A8: Bernouilli | C8: Elige número de filas y columnas y si deseas repetir varias veces el experimento para un mejor ajuste (los datos se acumulan)
A9: Binomial
C13: Elige el tipo de simulación:
C15: En la mayoría de los tipos conviene concretar el número de intervalos para la tabla. Entre 8 y 15 está bien.
C19: En algunas simulaciones desearás decimales y en otras no (o por su propia naturaleza). Concrétalo:
C22: Uniforme
C24: En ella los datos se distribuyen de forma uniforme, sin ninguna tendencia, entre un máximo y mínimo o alrededor de una media.
C25: Elige el tipo "Uniforme":
C27: Lo normal en este tipo es trabajar con Máximo y mínimo. Si es así. Concreta sus valores
C29: Activa la opción "Máximo-Mínimo" en el desplegable:
C31: Si deseas usar una media y desviación típica, los datos se extenderán varias sigmas alrededor de la media. Deberás activar:
C37: Normal
C39: En ella los datos se distribuyen de forma de campana, siguiendo aproximadamente la curva de Gauss.
C40: Elige el tipo "Normal":
C43: Como en el caso anterior, elige entre Máximo-Mínimo o Media-Desviación
C51: El resto del proceso es similar a las anteriores. Si eliges Máximo-Mínimo, sus valores serán sólo orientativos.
C52: También puedes optar por usar decimales o enteros.
C54: Bernouilli
C56: Como tipo de simulación elige Bernouilli con el desplegable:
C60: La probabilidad a favor la escribes en el parámetro A
C61: Si es una fracción, como por ejemplo 1/3, escríbela con signo = delante y se traducirá a decimales.
C66: El resto de condiciones, como en las demás simulaciones.
C67: La elección de entero-decimal o la de media o max.min, no influye en este caso.
C68: Los resultados serán 0 (no ocurre) y 1 (sí ocurre)
C69: El número de intervalos se fija en 2
C71: Binomial
C73: El total de intentos en cada “tirada” los escribimos como parámetro A
C74: La probabilidad de éxito, como parámetro B. Si es una fracción, se escribe con el signo = delante
C77: En la imagen se ha diseñado un experimento con 6 intentos y probabilidad 0,2 de éxito.
C78: El número de intervalos, el mínimo y el máximo lo fija la hoja. Es preferible que no escribas nada.
